[Event "Polish Youth G16 Championship 2023"]
[Site "Jastrzebia Gora"]
[Date "2023.03.16"]
[Round "6.9"]
[White "Zielinska, Aleksandra"]
[Black "Pastuszko, Katarzyna"]
[Result "0-1"]
[ECO "C45"]
[WhiteElo "1613"]
[BlackElo "1286"]
[Annotator "NA RC COMBH"]
[PlyCount "82"]
[EventDate "2023.03.11"]
[EventType "swiss"]
[EventCountry "POL"]
[SourceTitle "playchess.com"]
[Source "ChessBase"]
[SourceQuality "1"]
[TimeControl "40/5400+30:1800+30"]

1. e4 {[%emt 0:00:01]} e5 {[%emt 0:00:07]} 2. Nf3 {[%emt 0:00:06]} Nc6 {[%emt 0:00:05]} 3. d4 {[%emt 0:00:06]} exd4 {[%emt 0:00:05]} 4. Nxd4 {[%emt 0:00:06]} Nf6 {[%emt 0:00:09]} 5. Nxc6 {[%emt 0:00:09]} bxc6 {[%emt 0:00:14]} 6. e5 {[%emt 0:00:07]} Nd5 {[%emt 0:01:20]} 7. c4 {[%emt 0:05:53]} Bb4+ {[%emt 0:03:22]} 8. Bd2 {[%emt 0:03:42]} Bxd2+ {[%emt 0:02:15]} 9. Qxd2 {[%emt 0:00:20]} Nb6 {[%emt 0:01:49]} 10. Bd3 {[%emt 0:03:43]} O-O {[%emt 0:01:38]} 11. O-O {[%emt 0:01:32]} Kh8 {[%emt 0:10:57]} 12. Nc3 {[%emt 0:04:25]} d5 {[%emt 0:07:31]} 13. exd6 {[%emt 0:05:40]} cxd6 {[%emt 0:00:43]} 14. Rad1 {[%emt 0:02:48]} Be6 {[%emt 0:01:40]} 15. b3 {[%emt 0:02:50]} Qc7 {[%emt 0:04:13]} 16. Qc2 {[%emt 0:04:31]} h6 {[%emt 0:01:46]} 17. f4 {[%emt 0:05:33]} f5 {[%emt 0:03:47]} 18. Ne2 {[%emt 0:08:27]} c5 {[%emt 0:16:08]} 19. Nc3 {[%emt 0:04:56]} a6 {[%emt 0:04:57]} 20. a4 {[%emt 0:07:02]} Rab8 {[%emt 0:07:41]} 21. Rfe1 {[%emt 0:06:07]} Qf7 {[%emt 0:08:33]} 22. Re3 {[%emt 0:07:28]} Rbe8 {[%emt 0:02:00]} 23. Rde1 {[%emt 0:07:12]} Bc8 {[%emt 0:04:55]} 24. a5 {[%emt 0:04:55]} Nd7 {[%emt 0:02:45]} 25. Nd5 {[%emt 0:04:12]} Nb8 {[%emt 0:04:53]} 26. Ne7 {[%emt 0:06:30]} Qf6 {[%emt 0:02:06]} 27. Nxf5 {[%emt 0:04:13]} Rxe3 {[%emt 0:01:20]} 28. Rxe3 {[%emt 0:00:50]} Bxf5 {[%emt 0:01:38]} 29. Bxf5 {[%emt 0:00:05]} Nc6 {[%emt 0:01:11]} 30. Bd7 {[%emt 0:01:21]} Qa1+ {[%emt 0:02:05]} 31. Kf2 {[%emt 0:00:18]} Nd4 {[%emt 0:01:12]} 32. Qd2 {[%emt 0:00:43]} Qb1 {[%emt 0:02:08]} 33. g3 {[%emt 0:00:33]} Qh1 {[%emt 0:00:26]} 34. Qc3 {[%emt 0:00:35]} Qxh2+ {[%emt 0:00:40]} 35. Kf1 {[%emt 0:00:16]} Rb8 {[%emt 0:00:37]} 36. Qd3 {[%emt 0:00:30]} Qh1+ {[%emt 0:00:47]} 37. Kf2 {[%emt 0:00:08]} Qh2+ {[%emt 0:00:31]} 38. Kf1 {[%emt 0:00:17]} Nxb3 {[%emt 0:00:27]} 39. Re2 {[%emt 0:01:16]} Qh1+ {[%emt 0:00:32]} 40. Kf2 {[%emt 0:00:00]} Nc1 {[%emt 0:00:00]} 41. Qe4 {[%emt 0:15:16]} Qh2+ {[%emt 0:01:47]} 0-1

[Event "Polish Youth G16 Championship 2023"]
[Site "Jastrzebia Gora"]
[Date "2023.03.16"]
[Round "6.10"]
[White "Romejko, Jagoda"]
[Black "Oborska, Magda"]
[Result "1/2-1/2"]
[ECO "D35"]
[WhiteElo "1483"]
[BlackElo "1613"]
[Annotator "NA RC COMBH"]
[PlyCount "81"]
[EventDate "2023.03.11"]
[EventType "swiss"]
[EventCountry "POL"]
[SourceTitle "playchess.com"]
[Source "ChessBase"]
[SourceQuality "1"]
[TimeControl "40/5400+30:1800+30"]

1. d4 d5 2. c4 e6 3. Nc3 Nf6 4. cxd5 exd5 5. Bg5 Be7 6. Nf3 O-O 7. e3 h6 8. Bf4 c6 9. Qc2 Nbd7 10. Bd3 Nb6 11. O-O Bd6 12. Be5 Re8 13. h3 Be6 14. Na4 Nxa4 15. Qxa4 Bxe5 16. Nxe5 Nd7 17. Nxd7 Bxd7 18. Qb4 Qg5 19. Kh2 b6 20. Rac1 f5 21. Qd6 Qe7 22. Qg6 Rf8 23. Rfe1 Rf6 24. Qg3 f4 25. Qh4 Qf7 26. f3 fxe3 27. Rxe3 Rf4 28. Qe7 Qxe7 29. Rxe7 Rd8 30. Bg6 Rf6 31. Bd3 Kf8 32. Rce1 Re8 33. Rxe8+ Bxe8 34. Kg3 Bd7 35. h4 Be8 36. Re5 g6 37. f4 Bd7 38. Kf3 Kf7 39. g4 Rd6 40. f5 gxf5 41. gxf5 1/2-1/2

[Event "Polish Youth G16 Championship 2023"]
[Site "Jastrzebia Gora"]
[Date "2023.03.16"]
[Round "6.11"]
[White "Pietryk, Joanna"]
[Black "Sprzeczka, Emilia"]
[Result "1-0"]
[ECO "C00"]
[WhiteElo "1488"]
[BlackElo "1887"]
[Annotator "NA RC COMBH"]
[PlyCount "71"]
[EventDate "2023.03.11"]
[EventType "swiss"]
[EventCountry "POL"]
[SourceTitle "playchess.com"]
[Source "ChessBase"]
[SourceQuality "1"]
[TimeControl "40/5400+30:1800+30"]

{[%evp 8,69,37,20,22,26,33,21,32767,32767,32767,32767,56,49,56,52,55,42,32767,32767,32767,47,63,32,52,14,87,147,192,137,32767,112,32767,32767,32767,32767,32767,32767,478,472,32767,32767,32767,32767,642,32767,32767,32767,32767,32767,1360,625,2560,1601,32767,32767,29984,32767,29991,32767,32767,29993,32767,29994]} 1. e4 {[%emt 0:00:03]} e6 {[%emt 0:00:06]} 2. d4 {[%emt 0:00:14]} d5 {[%emt 0:00:05]} 3. Bd3 {[%emt 0:01:17]} Nf6 {[%emt 0:01:44]} 4. e5 {[%emt 0:01:10]} Nfd7 {[%emt 0:00:18]} 5. f4 {[%emt 0:01:24]} c5 {[%emt 0:01:23]} 6. c3 {[%emt 0:01:30]} Nc6 {[%emt 0:00:35]} 7. Nf3 {[%emt 0:01:33]} Be7 {[%emt 0:12:50]} 8. O-O {[%emt 0:02:08]} O-O {[%emt 0:09:20]} 9. Be3 {[%emt 0:09:18]} cxd4 {[%emt 0:04:55]} 10. Nxd4 {[%emt 0:01:48]} Nxd4 {[%emt 0:04:10]} 11. cxd4 {[%emt 0:00:38]} f5 {[%emt 0:08:30]} 12. Nc3 {[%emt 0:07:52]} a6 {[%emt 0:06:19]} 13. g4 {[%emt 0:02:32]} g6 {[%emt 0:12:55]} 14. Kh1 {[%emt 0:02:30]} Kh8 {[%emt 0:01:45]} 15. gxf5 {[%emt 0:02:17]} gxf5 {[%emt 0:02:45]} 16. Rg1 {[%emt 0:04:36]} Nc5 {[%emt 0:09:56] [#]} 17. Be2 $1 {[%emt 0:02:03]} ({Much weaker is} 17. dxc5 $6 d4 $11) 17... Ne4 {[%emt 0:00:48]} (17... Nd7 $16) 18. Nxe4 {[%emt 0:04:07]} dxe4 {[%emt 0:00:26]} 19. Bc4 {[%emt 0:00:47]} b5 {[%emt 0:01:21]} 20. Bb3 {[%emt 0:00:11]} a5 {[%emt 0:01:22]} 21. a3 {[%emt 0:03:29]} Rb8 {[%emt 0:03:31]} 22. Qh5 {[%emt 0:02:16]} Rg8 {[%emt 0:02:51]} 23. Qf7 {[%emt 0:04:01]} Bh4 {[%emt 0:04:36]} 24. Bxe6 {[%emt 0:02:12]} Bxe6 {[%emt 0:01:02]} 25. Qxe6 {[%emt 0:00:08]} Qf8 {[%emt 0:03:09]} 26. Rxg8+ {[%emt 0:01:47]} Qxg8 {[%emt 0:00:05]} 27. Qxf5 {[%emt 0:00:22]} Qb3 {[%emt 0:02:53]} 28. Qxe4 {[%emt 0:04:52]} Qxb2 {[%emt 0:01:17]} 29. Rg1 {[%emt 0:00:30]} (29. Rc1 $142 Qxa3 30. e6) 29... Qxa3 {[%emt 0:00:50]} 30. f5 {[%emt 0:01:37]} Qe7 {[%emt 0:00:39]} 31. d5 {[%emt 0:01:39]} Bf6 {[%emt 0:02:08]} 32. Bd4 {[%emt 0:00:32]} Re8 {[%emt 0:01:02]} 33. d6 {[%emt 0:00:53]} Qd8 {[%emt 0:00:38]} 34. Qd5 {[%emt 0:04:52]} Bg7 {[%emt 0:00:42]} 35. e6 {[%emt 0:02:57]} Bf6 {[%emt 0:00:24]} 36. e7 {[%emt 0:00:51]} 1-0

[Event "Polish Youth G16 Championship 2023"]
[Site "Jastrzebia Gora"]
[Date "2023.03.16"]
[Round "6.12"]
[White "Zgoda, Aleksandra"]
[Black "Kulczycka, Zofia"]
[Result "0-1"]
[ECO "D00"]
[WhiteElo "1308"]
[BlackElo "1547"]
[Annotator "NA RC COMBH"]
[PlyCount "62"]
[EventDate "2023.03.11"]
[EventType "swiss"]
[EventCountry "POL"]
[SourceTitle "playchess.com"]
[Source "ChessBase"]
[SourceQuality "1"]
[TimeControl "40/5400+30:1800+30"]

1. d4 {[%emt 0:00:04]} d5 {[%emt 0:00:08]} 2. Bf4 {[%emt 0:00:09]} Nf6 {[%emt 0:00:07]} 3. e3 {[%emt 0:00:19]} e6 {[%emt 0:00:10]} 4. Nf3 {[%emt 0:00:33]} Bd6 {[%emt 0:00:13]} 5. Ne5 {[%emt 0:03:26]} O-O {[%emt 0:02:33]} 6. Nd2 {[%emt 0:02:29]} c5 {[%emt 0:00:27]} 7. c3 {[%emt 0:00:37]} Qc7 {[%emt 0:01:22]} 8. Bd3 {[%emt 0:04:16]} Nbd7 {[%emt 0:02:05]} 9. Ndf3 {[%emt 0:03:43]} b5 {[%emt 0:09:39]} 10. Bxb5 {[%emt 0:10:44]} Rb8 {[%emt 0:00:19]} 11. Nxd7 {[%emt 0:07:45]} Nxd7 {[%emt 0:03:19]} 12. Bxd6 {[%emt 0:05:13]} Qxd6 {[%emt 0:00:08]} 13. Bxd7 {[%emt 0:01:33]} Bxd7 {[%emt 0:01:07]} 14. Qc2 {[%emt 0:01:01]} cxd4 {[%emt 0:03:44]} 15. exd4 {[%emt 0:02:13]} Bb5 {[%emt 0:02:57]} 16. a4 {[%emt 0:10:50]} Bc4 {[%emt 0:05:15]} 17. Nd2 {[%emt 0:02:22]} Qa6 {[%emt 0:06:26]} 18. Nxc4 {[%emt 0:04:03]} Qxc4 {[%emt 0:00:24]} 19. O-O-O {[%emt 0:04:46]} Rb3 {[%emt 0:07:17]} 20. Kd2 {[%emt 0:03:46]} Rfb8 {[%emt 0:01:52]} 21. Rb1 {[%emt 0:01:21]} Qxa4 {[%emt 0:02:41]} 22. Rhe1 {[%emt 0:02:01]} Qb5 {[%emt 0:06:31]} 23. Kc1 {[%emt 0:02:47]} a5 {[%emt 0:09:06]} 24. Re2 {[%emt 0:00:26]} Qa4 {[%emt 0:06:17]} 25. f4 {[%emt 0:03:36]} Qa2 {[%emt 0:08:19]} 26. Rf2 {[%emt 0:01:33]} a4 {[%emt 0:02:36]} 27. f5 {[%emt 0:04:44]} a3 {[%emt 0:01:26]} 28. Qd3 {[%emt 0:01:28]} Rxb2 {[%emt 0:04:54]} 29. Rfxb2 {[%emt 0:01:51]} Rxb2 {[%emt 0:01:38]} 30. h3 {[%emt 0:02:02]} Qb3 {[%emt 0:07:00]} 31. Ra1 {[%emt 0:04:34]} Rxg2 {[%emt 0:00:20]} 0-1

[Event "Polish Youth G16 Championship 2023"]
[Site "Jastrzebia Gora"]
[Date "2023.03.16"]
[Round "6.14"]
[White "Pniewska, Beata"]
[Black "Makarec, Anna"]
[Result "1-0"]
[ECO "A25"]
[WhiteElo "1448"]
[BlackElo "1271"]
[Annotator "NA RC COMBH"]
[PlyCount "67"]
[EventDate "2023.03.11"]
[EventType "swiss"]
[EventCountry "POL"]
[SourceTitle "playchess.com"]
[Source "ChessBase"]
[SourceQuality "1"]
[TimeControl "40/5400+30:1800+30"]

1. c4 {[%emt 0:00:03]} e5 {[%emt 0:00:10]} 2. g3 {[%emt 0:00:17]} Nc6 {[%emt 0:00:18]} 3. Bg2 {[%emt 0:00:44]} g6 {[%emt 0:00:30]} 4. Nc3 {[%emt 0:00:49]} Bg7 {[%emt 0:00:30]} 5. e3 {[%emt 0:01:31]} d6 {[%emt 0:00:40]} 6. Nge2 {[%emt 0:01:24]} h5 {[%emt 0:01:02]} 7. d4 {[%emt 0:04:30]} h4 {[%emt 0:00:55]} 8. dxe5 {[%emt 0:03:58]} Nxe5 {[%emt 0:01:16]} 9. f4 {[%emt 0:06:58]} Nc6 {[%emt 0:09:28]} 10. Qc2 {[%emt 0:10:11]} Nf6 {[%emt 0:06:32]} 11. Bd2 {[%emt 0:04:17]} Be6 {[%emt 0:03:30]} 12. Nd5 {[%emt 0:02:17]} Bg4 {[%emt 0:09:56]} 13. Nxf6+ {[%emt 0:04:21]} Bxf6 {[%emt 0:00:38]} 14. Nc3 {[%emt 0:06:11]} Qd7 {[%emt 0:01:37]} 15. Nd5 {[%emt 0:02:40]} Bg7 {[%emt 0:02:00]} 16. h3 {[%emt 0:05:57]} Bf5 {[%emt 0:04:25]} 17. e4 {[%emt 0:06:04]} Be6 {[%emt 0:05:37]} 18. Bc3 {[%emt 0:04:00]} Bxc3+ {[%emt 0:14:03]} 19. Qxc3 {[%emt 0:00:23]} O-O-O {[%emt 0:00:22]} 20. g4 {[%emt 0:03:20]} f5 {[%emt 0:02:27]} 21. exf5 {[%emt 0:02:08]} gxf5 {[%emt 0:03:01]} 22. O-O-O {[%emt 0:00:55]} fxg4 {[%emt 0:01:46]} 23. hxg4 {[%emt 0:00:16]} Bxg4 {[%emt 0:01:58]} 24. Nf6 Qf5 {[%emt 0:02:36]} 25. Nxg4 {[%emt 0:01:17]} Qxf4+ {[%emt 0:05:23]} 26. Kb1 {[%emt 0:00:36]} h3 {[%emt 0:02:33]} 27. Bxh3 {[%emt 0:01:44]} Kb8 {[%emt 0:02:46]} 28. Nf6 {[%emt 0:01:02]} Rh6 {[%emt 0:01:04]} 29. Rhf1 {[%emt 0:04:29]} Qh4 {[%emt 0:01:02]} 30. Bg2 {[%emt 0:00:58]} Ne5 {[%emt 0:01:22]} 31. Qxe5 {[%emt 0:00:55]} a6 {[%emt 0:06:03]} 32. Qe7 {[%emt 0:01:14]} Rdh8 {[%emt 0:00:47]} 33. Rxd6 {[%emt 0:00:43]} Qxc4 {[%emt 0:02:02]} 34. Nd7+ {[%emt 0:00:29]} 1-0

[Event "Polish Youth G16 Championship 2023"]
[Site "Jastrzebia Gora"]
[Date "2023.03.16"]
[Round "6.15"]
[White "Krzysztynska, Maria"]
[Black "Bandyk, Joanna"]
[Result "0-1"]
[ECO "E76"]
[WhiteElo "1335"]
[BlackElo "1459"]
[Annotator "NA RC COMBH"]
[PlyCount "54"]
[EventDate "2023.03.11"]
[EventType "swiss"]
[EventCountry "POL"]
[SourceTitle "playchess.com"]
[Source "ChessBase"]
[SourceQuality "1"]
[TimeControl "40/5400+30:1800+30"]

1. d4 {[%emt 0:04:29]} Nf6 {[%emt 0:00:38]} 2. c4 {[%emt 0:00:47]} g6 {[%emt 0:00:05]} 3. Nc3 {[%emt 0:00:21]} Bg7 {[%emt 0:00:24]} 4. e4 {[%emt 0:01:01]} d6 {[%emt 0:00:20]} 5. f4 {[%emt 0:01:36]} O-O {[%emt 0:04:03]} 6. Nf3 {[%emt 0:02:37]} c5 {[%emt 0:07:51]} 7. dxc5 {[%emt 0:03:14]} dxc5 {[%emt 0:01:40]} 8. Be3 {[%emt 0:04:31]} b6 {[%emt 0:06:50]} 9. Bd3 {[%emt 0:05:42]} Bb7 {[%emt 0:05:21]} 10. O-O {[%emt 0:09:07]} Ng4 {[%emt 0:03:55]} 11. Bf2 {[%emt 0:06:42]} Nc6 {[%emt 0:04:43]} 12. h3 {[%emt 0:09:02]} Nxf2 {[%emt 0:00:22]} 13. Rxf2 {[%emt 0:00:27]} Nd4 {[%emt 0:12:04]} 14. Rd2 {[%emt 0:14:43]} Qc7 {[%emt 0:07:46]} 15. e5 {[%emt 0:18:21]} Nxf3+ {[%emt 0:05:35]} 16. gxf3 {[%emt 0:00:24]} Bh6 {[%emt 0:01:29]} 17. Nb5 {[%emt 0:09:39]} Qc8 {[%emt 0:04:38]} 18. f5 {[%emt 0:00:53]} Bxd2 {[%emt 0:02:13]} 19. Qxd2 {[%emt 0:00:06]} Kh8 {[%emt 0:09:37]} 20. Qg5 {[%emt 0:06:03]} gxf5 {[%emt 0:01:24]} 21. Qxe7 {[%emt 0:00:15]} Qd8 {[%emt 0:06:56]} 22. Qd6 {[%emt 0:00:26]} Qg5+ {[%emt 0:02:38]} 23. Kf2 {[%emt 0:00:41]} Rad8 {[%emt 0:02:13]} 24. Qc7 {[%emt 0:00:47]} Rxd3 {[%emt 0:00:43]} 25. Qxb7 {[%emt 0:00:33]} Rd2+ {[%emt 0:00:09]} 26. Ke1 {[%emt 0:00:30]} Qe3+ {[%emt 0:00:09]} 27. Kf1 {[%emt 0:00:12]} Qf2# {[%emt 0:00:04]} 0-1

[Event "Polish Youth G16 Championship 2023"]
[Site "Jastrzebia Gora"]
[Date "2023.03.16"]
[Round "6.16"]
[White "Nowak, Zuzanna"]
[Black "Sliwicka, Weronika"]
[Result "1/2-1/2"]
[ECO "B29"]
[WhiteElo "1427"]
[BlackElo "1374"]
[Annotator "NA RC COMBH"]
[PlyCount "61"]
[EventDate "2023.03.11"]
[EventType "swiss"]
[EventCountry "POL"]
[SourceTitle "playchess.com"]
[Source "ChessBase"]
[SourceQuality "1"]
[TimeControl "40/5400+30:1800+30"]

1. e4 {[%emt 0:00:01]} c5 {[%emt 0:00:03]} 2. Nf3 {[%emt 0:00:06]} Nf6 {[%emt 0:00:07]} 3. e5 {[%emt 0:00:08]} Nd5 {[%emt 0:00:04]} 4. c3 {[%emt 0:00:20]} Nc6 {[%emt 0:00:18]} 5. d4 {[%emt 0:01:33]} cxd4 {[%emt 0:01:24]} 6. cxd4 {[%emt 0:00:25]} d6 {[%emt 0:00:28]} 7. a3 {[%emt 0:01:49]} g6 {[%emt 0:10:52]} 8. Nbd2 {[%emt 0:06:46]} Bg7 {[%emt 0:00:59]} 9. Qe2 {[%emt 0:13:14]} O-O {[%emt 0:03:42]} 10. g3 {[%emt 0:06:38]} Nb6 {[%emt 0:03:47]} 11. Bg2 {[%emt 0:00:28]} Bg4 {[%emt 0:05:08]} 12. Qe3 {[%emt 0:00:58]} dxe5 {[%emt 0:01:41]} 13. dxe5 {[%emt 0:02:39]} Bxf3 {[%emt 0:00:14]} 14. Nxf3 {[%emt 0:02:00]} Nc4 {[%emt 0:00:37]} 15. Qb3 {[%emt 0:01:21]} N6xe5 {[%emt 0:01:44]} 16. Nxe5 {[%emt 0:00:34]} Nxe5 {[%emt 0:00:06]} 17. O-O {[%emt 0:00:19]} Nd3 {[%emt 0:09:37]} 18. Rd1 {[%emt 0:07:14]} Nxc1 {[%emt 0:01:52]} 19. Raxc1 {[%emt 0:00:03]} Qb6 {[%emt 0:02:53]} 20. Qxb6 {[%emt 0:02:50]} axb6 {[%emt 0:00:28]} 21. Rc7 {[%emt 0:00:39]} Bxb2 {[%emt 0:01:32]} 22. Rxe7 {[%emt 0:01:31]} Rxa3 {[%emt 0:00:56]} 23. Rxb7 {[%emt 0:00:17]} Ra1 {[%emt 0:00:39]} 24. Rxa1 {[%emt 0:01:01]} Bxa1 {[%emt 0:00:05]} 25. Rxb6 {[%emt 0:00:03]} Bd4 {[%emt 0:00:29]} 26. Rb7 {[%emt 0:01:21]} Rd8 {[%emt 0:00:16]} 27. Bf1 {[%emt 0:03:30]} Rc8 {[%emt 0:01:05]} 28. Rd7 {[%emt 0:00:05]} Bb6 {[%emt 0:00:16]} 29. Rb7 {[%emt 0:00:23]} Bd4 {[%emt 0:00:12]} 30. Rd7 {[%emt 0:00:06]} Bb6 {[%emt 0:00:07]} 31. Rb7 {[%emt 0:00:07]} 1/2-1/2

[Event "Polish Youth G16 Championship 2023"]
[Site "Jastrzebia Gora"]
[Date "2023.03.16"]
[Round "6.17"]
[White "Michalska, Anna-Maria"]
[Black "Dura, Anna"]
[Result "1/2-1/2"]
[ECO "A13"]
[WhiteElo "1417"]
[BlackElo "1186"]
[Annotator "NA RC COMBH"]
[PlyCount "66"]
[EventDate "2023.03.11"]
[EventType "swiss"]
[EventCountry "POL"]
[SourceTitle "playchess.com"]
[Source "ChessBase"]
[SourceQuality "1"]
[TimeControl "40/5400+30:1800+30"]

1. c4 e6 2. e4 d5 3. exd5 exd5 4. cxd5 Qxd5 5. Nc3 Qd8 6. Bc4 Nf6 7. d4 Be7 8. h3 a6 9. a3 b5 10. Be2 Bb7 11. Nf3 O-O 12. O-O h6 13. b4 Ne4 14. Nxe4 Bxe4 15. Be3 Bf6 16. Qd2 Nc6 17. Rfd1 Qd7 18. Qc3 Qd6 19. Rd2 Rfd8 20. Rad1 Rac8 21. Ne1 Ne7 22. Bf3 Bxf3 23. Nxf3 Nd5 24. Qc5 Qe6 25. Re1 Nxe3 26. Rxe3 Qd6 27. Qc2 Rd7 28. Rde2 Rf8 29. Ne5 Rdd8 30. Re4 Qb6 31. Qc5 Qd6 32. Qc3 Qb6 33. Qc5 Qd6 1/2-1/2

[Event "Polish Youth G16 Championship 2023"]
[Site "Jastrzebia Gora"]
[Date "2023.03.16"]
[Round "6.18"]
[White "Butkiewicz, Hanna"]
[Black "Bauer, Maja"]
[Result "0-1"]
[ECO "B72"]
[WhiteElo "1120"]
[BlackElo "1383"]
[Annotator "NA RC COMBH"]
[PlyCount "62"]
[EventDate "2023.03.11"]
[EventType "swiss"]
[EventCountry "POL"]
[SourceTitle "playchess.com"]
[Source "ChessBase"]
[SourceQuality "1"]
[TimeControl "40/5400+30:1800+30"]

1. e4 c5 2. Nf3 d6 3. d4 cxd4 4. Nxd4 Nf6 5. Nc3 g6 6. Be3 Bg7 7. Nb3 O-O 8. Bd3 Nc6 9. O-O Be6 10. f4 Ng4 11. Qe2 Nxe3 12. Qxe3 Bxb3 13. Qg3 Be6 14. f5 Bd7 15. a3 Qb6+ 16. Kh1 Qxb2 17. Nd5 Qe5 18. Qh4 e6 19. Ne7+ Nxe7 20. Qxe7 Bc6 21. Qh4 Rac8 22. f6 Bh8 23. Rab1 a6 24. c4 b5 25. cxb5 Bxb5 26. Bxb5 axb5 27. Rb4 Rc4 28. h3 Rfc8 29. Rxc4 bxc4 30. Qg4 Bxf6 31. Qf3 c3 0-1

[Event "Polish Youth G16 Championship 2023"]
[Site "Jastrzebia Gora"]
[Date "2023.03.16"]
[Round "6.19"]
[White "Domeradzka, Karolina"]
[Black "Niedorys, Karolina"]
[Result "1/2-1/2"]
[ECO "B23"]
[WhiteElo "1194"]
[BlackElo "1458"]
[Annotator "NA RC COMBH"]
[PlyCount "80"]
[EventDate "2023.03.11"]
[EventType "swiss"]
[EventCountry "POL"]
[SourceTitle "playchess.com"]
[Source "ChessBase"]
[SourceQuality "1"]
[TimeControl "40/5400+30:1800+30"]

1. e4 c5 {[%emt 0:00:08]} 2. Nc3 d6 {[%emt 0:01:33]} 3. d4 {[%emt 0:00:07]} cxd4 {[%emt 0:00:42]} 4. Qxd4 {[%emt 0:00:02]} e5 {[%emt 0:11:59]} 5. Qd2 {[%emt 0:01:12]} Be6 {[%emt 0:07:08]} 6. b3 {[%emt 0:00:15]} Be7 {[%emt 0:01:27]} 7. Bb2 {[%emt 0:01:25]} Nf6 {[%emt 0:01:07]} 8. O-O-O {[%emt 0:02:01]} Qa5 {[%emt 0:11:37]} 9. Kb1 {[%emt 0:00:56]} a6 {[%emt 0:06:37]} 10. f3 Nc6 {[%emt 0:00:30]} 11. h4 {[%emt 0:05:56]} Rc8 12. Nge2 O-O {[%emt 0:06:55]} 13. g4 {[%emt 0:10:47]} Rfd8 {[%emt 0:00:47]} 14. Nd5 {[%emt 0:20:35]} Qxd2 {[%emt 0:05:31]} 15. Rxd2 Bxd5 16. exd5 {[%emt 0:00:11]} Nb8 {[%emt 0:09:23]} 17. c4 {[%emt 0:05:13]} b5 {[%emt 0:02:08]} 18. Ng3 {[%emt 0:01:05]} b4 {[%emt 0:01:27]} 19. Nf5 {[%emt 0:07:21]} Bf8 {[%emt 0:02:51]} 20. Bd3 {[%emt 0:01:45]} g6 {[%emt 0:01:39]} 21. Ng3 {[%emt 0:01:29]} a5 {[%emt 0:01:57]} 22. Bc1 {[%emt 0:17:21]} Bg7 {[%emt 0:06:32]} 23. Re2 {[%emt 0:00:36]} Na6 {[%emt 0:00:53]} 24. Rf1 {[%emt 0:04:29]} Nc5 {[%emt 0:00:34]} 25. Bc2 {[%emt 0:00:22]} Ra8 {[%emt 0:01:08]} 26. Ne4 {[%emt 0:00:20]} Nfxe4 {[%emt 0:01:34]} 27. fxe4 {[%emt 0:00:03]} a4 {[%emt 0:00:35]} 28. Ref2 {[%emt 0:02:13]} axb3 {[%emt 0:01:26]} 29. axb3 {[%emt 0:00:35]} Rd7 {[%emt 0:01:01]} 30. h5 {[%emt 0:00:42]} Rda7 {[%emt 0:00:58]} 31. Bb2 {[%emt 0:00:27]} Bh6 {[%emt 0:01:49]} 32. Rf6 {[%emt 0:10:42]} Be3 {[%emt 0:01:26]} 33. Rd1 Bd4 {[%emt 0:01:12]} 34. Rxd4 {[%emt 0:02:59]} exd4 {[%emt 0:00:29]} 35. Bxd4 {[%emt 0:00:04]} Ra6 {[%emt 0:02:48]} 36. e5 {[%emt 0:02:19]} dxe5 {[%emt 0:00:30]} 37. Rxa6 {[%emt 0:00:30]} Nxa6 {[%emt 0:01:27]} 38. Bxe5 {[%emt 0:00:00]} Rd8 {[%emt 0:01:51]} 39. Kc1 {[%emt 0:00:51]} Kf8 {[%emt 0:01:55]} 40. Kd2 {[%emt 0:00:00]} Ke7 {[%emt 0:00:00]} 1/2-1/2

[Event "Polish Youth G16 Championship 2023"]
[Site "Jastrzebia Gora"]
[Date "2023.03.16"]
[Round "6.20"]
[White "Gajec, Roza"]
[Black "Kaczmarek, Paulina"]
[Result "0-1"]
[ECO "B78"]
[WhiteElo "1341"]
[BlackElo "1317"]
[Annotator "NA RC COMBH"]
[PlyCount "108"]
[EventDate "2023.03.11"]
[EventType "swiss"]
[EventCountry "POL"]
[SourceTitle "playchess.com"]
[Source "ChessBase"]
[SourceQuality "1"]
[TimeControl "40/5400+30:1800+30"]

1. e4 {[%emt 0:00:01]} c5 {[%emt 0:00:01]} 2. Nf3 {[%emt 0:00:06]} d6 {[%emt 0:00:02]} 3. d4 {[%emt 0:00:05]} cxd4 {[%emt 0:00:10]} 4. Nxd4 {[%emt 0:00:03]} Nf6 {[%emt 0:00:01]} 5. Nc3 {[%emt 0:00:15]} g6 {[%emt 0:00:10]} 6. Be3 {[%emt 0:00:12]} Bg7 {[%emt 0:00:04]} 7. f3 {[%emt 0:00:39]} O-O {[%emt 0:00:35]} 8. Qd2 {[%emt 0:00:16]} Nc6 {[%emt 0:01:42]} 9. Bc4 {[%emt 0:01:06]} Bd7 10. O-O-O {[%emt 0:00:48]} Rc8 {[%emt 0:00:26]} 11. Bb3 {[%emt 0:00:26]} Ne5 {[%emt 0:00:29]} 12. Kb1 {[%emt 0:01:46]} Nc4 {[%emt 0:00:27]} 13. Bxc4 {[%emt 0:00:25]} Rxc4 {[%emt 0:00:04]} 14. g4 {[%emt 0:01:19]} b5 {[%emt 0:01:41]} 15. Ncxb5 {[%emt 0:05:44]} Bxb5 {[%emt 0:03:16]} 16. Nxb5 {[%emt 0:00:16]} Qb8 17. Nd4 {[%emt 0:02:49]} Rfc8 {[%emt 0:04:15]} 18. Rc1 {[%emt 0:03:16]} Nd7 {[%emt 0:05:28]} 19. Nb3 {[%emt 0:06:34]} Nc5 {[%emt 0:02:04]} 20. Bxc5 R4xc5 {[%emt 0:00:56]} 21. c3 {[%emt 0:05:39]} Rc4 {[%emt 0:12:34]} 22. h4 {[%emt 0:11:27]} h6 {[%emt 0:03:57]} 23. h5 {[%emt 0:02:44]} g5 {[%emt 0:02:40]} 24. f4 {[%emt 0:18:32]} Bf6 {[%emt 0:24:56]} 25. Rcf1 {[%emt 0:03:14]} Rxe4 26. fxg5 {[%emt 0:00:26]} Bxg5 {[%emt 0:02:12]} 27. Qd5 Rf4 {[%emt 0:02:06]} 28. Rxf4 {[%emt 0:01:37]} Bxf4 {[%emt 0:01:34]} 29. Rf1 {[%emt 0:01:16]} e5 {[%emt 0:01:40]} 30. Ka1 {[%emt 0:11:43]} Qc7 {[%emt 0:02:28]} 31. Nd2 {[%emt 0:00:44]} Qc6 {[%emt 0:05:11]} 32. Qd3 {[%emt 0:04:14]} d5 {[%emt 0:07:56]} 33. Kb1 {[%emt 0:03:05]} Rc7 34. Nb3 {[%emt 0:03:02]} Qe6 {[%emt 0:02:19]} 35. Qe2 Qb6 {[%emt 0:04:58]} 36. Qd3 {[%emt 0:02:41]} Qc6 37. Na5 {[%emt 0:02:00]} Qc5 {[%emt 0:05:03]} 38. Nb3 {[%emt 0:00:22]} Qc4 {[%emt 0:00:35]} 39. Qd1 {[%emt 0:00:48]} Qe4+ {[%emt 0:00:34]} 40. Ka1 {[%emt 0:00:00]} f6 {[%emt 0:00:00]} 41. Re1 {[%emt 0:00:44]} Qc4 42. Na5 {[%emt 0:02:16]} Qb5 {[%emt 0:04:25]} 43. Nb3 {[%emt 0:00:21]} Rg7 {[%emt 0:02:02]} 44. Nc1 {[%emt 0:03:14]} Qd7 45. Rg1 {[%emt 0:06:36]} Bxc1 {[%emt 0:00:52]} 46. Qxc1 Rxg4 47. b3 {[%emt 0:01:13]} Rg5 {[%emt 0:04:16]} 48. Qf1 {[%emt 0:01:02]} Kg7 {[%emt 0:01:39]} 49. Rxg5+ {[%emt 0:00:47]} hxg5 {[%emt 0:00:48]} 50. Qd3 {[%emt 0:00:43]} e4 {[%emt 0:01:12]} 51. Qd4 {[%emt 0:01:28]} Qf7 {[%emt 0:00:58]} 52. c4 {[%emt 0:01:20]} dxc4 {[%emt 0:00:22]} 53. bxc4 {[%emt 0:00:32]} Qe7 {[%emt 0:06:06]} 54. Qe3 {[%emt 0:02:15]} Kh6 {[%emt 0:02:53]} 0-1